Workbook

Sheet Instructions
A1: Instructions for completing the Annual Budget Report
A3: 1 | B3: Save this form to a disk or hard drive first, before entering any information.
A4: 2 | B4: Each page of the report is broken down by the "Tabs" at the bottom. "Cover" "Receipts"etc.
B5: Click on any tab to enter the financial information.
A6: 3 | B6: Figures can only be entered in the blue boxes on the worksheets.
A7: 4 | B7: If you need to add additional information, enter this in the "Notes" tab at the end.
A8: 5 | B8: Since this is an electronic form, please print out the "Signatures" sheet for signatures of the
B9: Pastor and the members of Finance Council. Please scan & email this to Joseph Bytella when completed jbytella@dioceseaj.org (814) 317-2614.
A10: 6 | B10: Please print a copy for your records when finished by clicking on the "Print Budget Report" Button below.
A11: 7 | B11: Please return the completed form (saved file) to Joseph Bytella jbytella@dioceseaj.org.

Sheet Cover
A3: DIOCESE OF ALTOONA-JOHNSTOWN
A6: Church of | B6: St. John the Evangelist | C6: No.
A9: Location | B9: Bellefonte, PA
A15: Financial Report
A16: for
A17: FISCAL YEAR JULY 1, 2019 TO JUNE 30, 2020
A23: INSTRUCTIONS
A26: 1. Budgets by the Parish Finance Council have been required since 1988.
A28: 2. Please provide yours on this form for the next fiscal year.
A30: 3. Please exclude all cemetery and school accounts from this report.
A32: 4. Approval of Parish Finance Council and Bishop is required to buy or sell property.
A34: 5. Expenditures of $10,000.00 or more must be approved by the Parish Finance Council.
A36: 6. Expenditures of $25,000.00 or more must be approved by the Parish Finance Council and the Bishop.
A40: (Signatures are required on the last page)
A45: Due Date: August 16, 2019
A46: Mail To: Diocesan Finance Office
A47: 2713 West Chestnut Avenue, Altoona, PA 16601

Sheet Receipts
A1: RECEIPTS
A2: FOR THE YEAR ENDING JUNE 30, 2019
A4: ASSESSED RECEIPTS:
A5: ORDINARY RECEIPTS:
B6: REGULAR RECEIPTS:
C7: Regular Offertory Collection . . . . . . . . . . . . . . . . . . . . . . . . . . . . . . . . . . . . . . . . . . . . . . . . . . . . . . . . . . . | G7: $ | H7: 551266
C8: Special Collections. . . . . . . . . . . . . . . . . . . . . . . . . . . . . . . . . . . . . . . . . . . . . . . . . . . . . . . . . . . . . . . . . . . . . . . . . . . . . . . | H8: 10180
D9: Sub Total - Collections. . . . . . . . . . . . . . . . . . . . . . . . . . . . . . . . . . . . . . . . . . . . . . . . . . . . . . . . . . . . . . . . . . . . . . . . . . . . . . . . . . . | J9: $ | K9: =SUM(H7:H8) -> 561446
C10: Perquisites. . . . . . . . . . . . . . . . . . . . . . . . . . . . . . . . . . . . . . . . . . . . . . . . . . . . . . . . . . . . . . . . . . . . . . . . . . . . . | G10: $ | H10: 2530
C11: Ordinary Donations. . . . . . . . . . . . . . . . . . . . . . . . . . . . . . . . . . . . . . . . . . . . . . . . . . . . . . . . . . . . . . . . . . . . . | H11: 420
C12: Votive Candle Income. . . . . . . . . . . . . . . . . . . . . . . . . . . . . . . . . . . . . . . . . . . . . . . . . . | E12: $ | F12: 4565
C13: Votive Candle Expense (cannot exceed candle income) . . . . . . . . . . . . . . . . . . . | E13: ( | F13: 4565 | G13: )
C14: Votive Candle Net Income (cannot be less than zero) = Candle Income minus Expense. . . . . . . . . . . . . . . . . . . . . . . . . . . . . . . . . | H14: =F12-F13 -> 0
C15: Misc. Regular Receipts . . . . . . . . . . . . . . . . . . . . . . . . . . . . . . . . . . . . . . . . . . . . . . . . . . . . . . . . . . . . . . . . . .
D16: Sub Total - Other Regular. . . . . . . . . . . . . . . . . . . . . . . . . . . . . . . . . . . . . . . . . . . . . . . . . . . . . . . . . . . . . . . . . . . . . . . . . . . . . . . | J16: $ | K16: =SUM(H10:H15) -> 2950
D17: Total - Regular Receipts . . . . . . . . . . . . . . . . . . . . . . . . . . . . . . . . . . . . . . . . . . . . . . . . . . . . . . . . . . . . . . . . . . . . . . . . . . . . . . . | J17: $ | K17: =K9+K16 -> 564396
B19: AUXILIARY RECEIPTS:
C20: Collections from Other Services Income. . . . . . . . . . . . . . . . . . . . . . . . . . . . . . . . . . . . . . . . . . . . . . . . . . . . | E20: $ | F20: 0
C21: Collections from Other Services Expense (can not exceed income). . . . . . . . . . . . . . . . . . . . . . . . . . . . . . . . . . . . . . . . . . . . . . . . . . . . | E21: ( | F21: 0 | G21: )
C22: Collections from Other Services Net Income (can not be less than zero) = Income - Expense. . . . . . . . . . . . . . . . . . . . . . . . . . . | H22: =F20-F21 -> 0
C23: Fundraising Income(Net of Expenses) . . . . . . . . . . . . . . . . . . . . . . . . . . . . . . . . . . . . . . . . . . . . . . . . . . | H23: 5580
C24: Investment Income Received . . . . . . . . . . . . . . . . . . . . . . . . . . . . . . . . . . . . . . . . . . . . . . . . . . . . . . . . . | H24: 5723
C25: Rental Income. . . . . . . . . . . . . . . . . . . . . . . . . . . . . . . . . . . . . . . . . . . . . . . . . . . . . . . . . . . . . . . . . . . . . . . | H25: 0
C26: Other Auxiliary Receipts. . . . . . . . . . . . . . . . . . . . . . . . . . . . . . . . . . . . . . . . . . . . . . . . . . . . . . . . . . . . . . .
D27: Total Auxiliary Receipts . . . . . . . . . . . . . . . . . . . . . . . . . . . . . . . . . . . . . . . . . . . . . . . . . . . . . . . . . . . . . . . . . . . . . . . . . . . . . . . | J27: $ | K27: =SUM(H22:H26) -> 11303
C28: TOTAL ORDINARY( Regular Plus Auxiliary) RECEIPTS . . . . . . . . . . . . . . . . . . . . . . . . . . . . . . . . . . . . . . . . . . . . . . . . . . . . . | J28: $ | K28: =K17+K27 -> 575699
B30: EXTRAORDINARY RECEIPTS:
C31: Parish Campaigns or Drives. . . . . . . . . . . . . . . . . . . . . . . . . . . . . . . . . . . . . . . . . . . . . . . . . . . . . . . . . . . . . . . . . . . . . . . | G31: $ | H31: 0
C32: Extraordinary Donations and Bequests . . . . . . . . . . . . . . . . . . . . . . . . . . . . . . . . . . . . . . . . . . . . . . . . . . . . . . . . | H32: 0
C33: Other Extraordinary Receipts. . . . . . . . . . . . . . . . . . . . . . . . . . . . . . . . . . . . . . . . . . . . . . . . . . . . . . . . . .
D34: Total Extraordinary Receipts. . . . . . . . . . . . . . . . . . . . . . . . . . . . . . . . . . . . . . . . . . . . . . . . . . . . . . . . . . . . . . . . . . . . . . . . | J34: $ | K34: =SUM(H31:H33) -> 0
C35: TOTAL ASSESSED( Ordinary Plus Extraordinary) RECEIPTS . . . . . . . . . . . . . . . . . . . . . . . . . . . . . . . . . . . . . . . . . . . . . . . . . | J35: $ | K35: =K28+K34 -> 575699
A37: NON-ASSESSED RECEIPTS:
C38: Sale of Property . . . . . . . . . . . . . . . . . . . . . . . . . . . . . . . . . . . . . . . . . . . . . . . . . . . . . . . . . . . . . . . . . . . . . . . | E38: $ | F38: 0
C39: Catholic Register Subscriptions . . . . . . . . . . . . . . . . . . . . . . . . . . . . . . . . . . . . . . . . . . . . . . . . . . . . . . . . . . . . | F39: 992
C40: Diocesan Approved Capital Campaign Receipts . . . . . . . . . . . . . . . . . . . . . . . . . . . . . . . . . . . . . . . . . . . . . . . | F40: 0
C41: Parish Share of Annual Catholic Appeal (over-goal). . . . . . . . . . . . . . . . . . . . . . . . . . . . . . . . . . . . . . . . . . . . . . . . | F41: 0
C42: Mass Stipend Transfer Amounts . . . . . . . . . . . . . . . . . . . . . . . . . . . . . . . . . . . . . . . . . . . . . . . . . . . . . . . . . . . . . | F42: 5000
C43: Other Non-Taxable Receipts . . . . . . . . . . . . . . . . . . . . . . . . . . . . . . . . . . . . . . . . . . . . . . . . . . . . . . . . . . . . . . . . . .
G44: $ | H44: =SUM(F38:F43) -> 5992
C45: Mutual Aid Plan Withdrawals . . . . . . . . . . . . . . . . . . . . . . . . . . . . . . . . . . . . . . . . . . . . . . . . . . . . . . . . . . . . . .
C46: Loan Proceeds . . . . . . . . . . . . . . . . . . . . . . . . . . . . . . . . . . . . . . . . . . . . . . . . . . . . . . . . . . . . . . . . . . . . . . . . . . . .
C47: Transfers from Other Accounts. . . . . . . . . . . . . . . . . . . . . . . . . . . . . . . . . . . . . . . . . . . . . . . . . . . . . . . . . . . . .
G48: $ | H48: =SUM(F45:F47) -> 0
C49: TOTAL NON-ASSESSED RECEIPTS . . . . . . . . . . . . . . . . . . . . . . . . . . . . . . . . . . . . . . . . . . . . . . . . . . . . . . . . . . . . . . . . . . . . . . . | J49: $ | K49: =SUM(H44+H48) -> 5992
B52: TOTAL PARISH RECEIPTS . . . . . . . . . . . . . . . . . . . . . . . . . . . . . . . . . . . . . . . . . . . . . . . . . . . . . . . . . . . . . . . . . . . . . . . . . . . . . . . . . . . . . . | J52: $ | K52: =SUM(K35+K49) -> 581691

Sheet Exps
A1: EXPENDITURES
A2: FOR THE YEAR ENDING JUNE 30, 2019
A3: ORDINARY ACCOUNTS:
B4: PARISH:
C5: Salaries of Resident Clergy . . . . . . . . . . . . . . . . . . . . . . . . . . . . . . . . . . . . . . . . . . . . . . . . . . . . . . . . . . . . . . . . . . . . | F5: $ | G5: 29052
C6: Extra Services of Clergy . . . . . . . . . . . . . . . . . . . . . . . . . . . . . . . . . . . . . . . . . . . . . . . . . . . . . . . . . . . . . . . . . . . . . . . | G6: 700
C7: Priest Medical/Retirement Costs . . . . . . . . . . . . . . . . . . . . . . . . . . . . . . . . . . . . . . . . . . . . . . . . . . . . . . . . . . . . . . . . | G7: 21278
C8: Lay Salaries. . . . . . . . . . . . . . . . . . . . . . . . . . . . . . . . . . . . . . . . . . . . . . . . . . . . . . . . . . . . . . . . . . . . . . . . . . . . . . . . . . | G8: 75767
C9: Sanctuary and Sacristy Expenditures. . . . . . . . . . . . . . . . . . . . . . . . . . . . . . . . . . . . . . . . . . . . . . . . . . . . . . . . . . . . . . . | G9: 21728
C10: Ordinary Repairs . . . . . . . . . . . . . . . . . . . . . . . . . . . . . . . . . . . . . . . . . . . . . . . . . . . . . . . . . . . . . . . . . . . . . . . . . . . . . . . . | G10: 21630
C11: Votive Candle Expense (excess of Candle Expense over Candle Income) from page 2. . . . . . . . . . . . . . . . . . . . . . . . . . . . | G11: 0
C12: Other Services Expense (excess of Other Services Expense over Other Services Income) page 2. . . . . . . . . . . . . . . . . . . . . . | G12: 0
C13: Missions and Novenas. . . . . . . . . . . . . . . . . . . . . . . . . . . . . . . . . . . . . . . . . . . . . . . . . . . . . . . . . . . . . . . . . . . . . . . . . . . | G13: 0
C14: Magazines, Literature, etc. . . . . . . . . . . . . . . . . . . . . . . . . . . . . . . . . . . . . . . . . . . . . . . . . . . . . . . . . . . . . . . . . . . . . . . . . . . . . . . | G14: 1734
C15: Other Incidental Expenses . . . . . . . . . . . . . . . . . . . . . . . . . . . . . . . . . . . . . . . . . . . . . . . . . . . . . . . . . . . . . . . . . . . . . . . . . | G15: 10997
D16: Total Parish Expenditures . . . . . . . . . . . . . . . . . . . . . . . . . . . . . . . . . . . . . . . . . . . . . . . . . . . . . . . . . . . . . . . . . . . . . . . . . . . . . . . . . . . . . . . . | H16: $ | I16: =SUM(G5:G15) -> 182886
B18: RECTORY:
C19: Lay Salaries . . . . . . . . . . . . . . . . . . . . . . . . . . . . . . . . . . . . . . . . . . . . . . . . . . . . . . . . . . . . . . . . . . . . . . . . . . . . . . . . . . | F19: $ | G19: 0
C20: Cost of Provisions. . . . . . . . . . . . . . . . . . . . . . . . . . . . . . . . . . . . . . . . . . . . . . . . . . . . . . . . . . . . . . . . . . . . . . . . . . . . . . | G20: 2234
C21: Furnishings. . . . . . . . . . . . . . . . . . . . . . . . . . . . . . . . . . . . . . . . . . . . . . . . . . . . . . . . . . . . . . . . . . . . . . . . . . . . . . . . . . . . . .
C22: Ordinary Repairs . . . . . . . . . . . . . . . . . . . . . . . . . . . . . . . . . . . . . . . . . . . . . . . . . . . . . . . . . . . . . . . . . . . . . . . . . . . . . . . . . . . | G22: 8268
C23: Telephone and Office Expenses . . . . . . . . . . . . . . . . . . . . . . . . . . . . . . . . . . . . . . . . . . . . . . . . . . . . . . . . . . . . . . . . . . . | G23: 14627
C24: Retreats\Clergy Conferences\Education . . . . . . . . . . . . . . . . . . . . . . . . . . . . . . . . . . . . . . . . . . . . . . . . . . . . . . . . . . . . . . . | G24: 610
C25: Other Incidental Expenses. . . . . . . . . . . . . . . . . . . . . . . . . . . . . . . . . . . . . . . . . . . . . . . . . . . . . . . . . . . . . . . . . . . . . . . . .
D26: Total Rectory Expenditures . . . . . . . . . . . . . . . . . . . . . . . . . . . . . . . . . . . . . . . . . . . . . . . . . . . . . . . . . . . . . . . . . . . . . . . . . . . . . . . . . . . . . . . . | H26: $ | I26: =SUM(G19:G25) -> 25739
B28: ALL OTHER SEPARATE BUILDINGS:
C29: Religious Salaries . . . . . . . . . . . . . . . . . . . . . . . . . . . . . . . . . . . . . . . . . . . . . . . . . . . . . . . . . . . . . . . . . . . . . . . . . . . . . . . . | F29: $
C30: Lay Salaries. . . . . . . . . . . . . . . . . . . . . . . . . . . . . . . . . . . . . . . . . . . . . . . . . . . . . . . . . . . . . . . . . . . . . . . . . . . . . . . . . . . . . . .
C31: Ordinary Repairs . . . . . . . . . . . . . . . . . . . . . . . . . . . . . . . . . . . . . . . . . . . . . . . . . . . . . . . . . . . . . . . . . . . . . . . . . . . . . . . . . . .
C32: Transportation . . . . . . . . . . . . . . . . . . . . . . . . . . . . . . . . . . . . . . . . . . . . . . . . . . . . . . . . . . . . . . . . . . . . . . . . . . . . . . . . . . . . .
C33: Telephone and Office Expense . . . . . . . . . . . . . . . . . . . . . . . . . . . . . . . . . . . . . . . . . . . . . . . . . . . . . . . . . . . . . . . . . . . . . . .
C34: Other Incidental Expenses. . . . . . . . . . . . . . . . . . . . . . . . . . . . . . . . . . . . . . . . . . . . . . . . . . . . . . . . . . . . . . . . . . . . . . . . . . . .
D35: Total Separate Buildings Expenditures . . . . . . . . . . . . . . . . . . . . . . . . . . . . . . . . . . . . . . . . . . . . . . . . . . . . . . . . . . . . . . . . . . . . . . . . . . . . . . | H35: $ | I35: =SUM(G29:G34) -> 0
B37: RELIGIOUS EDUCATION:
C38: Religious Salaries . . . . . . . . . . . . . . . . . . . . . . . . . . . . . . . . . . . . . . . . . . . . . . . . . . . . . . . . . . . . . . . . . . . . . . . . . . . . . . . . . . . . | F38: $
C39: Lay Salaries . . . . . . . . . . .. . . . . . . . . . . . . . . . . . . . . . . . . . . . . . . . . . . . . . . . . . . . . . . . . . . . . . . . . . . . . . . . . . . . . . . . . . . . . . | G39: 173
C40: Lay Payroll Taxes and Benefits. . . . . . . . . . . . . . . . . . . . . . . . . . . . . . . . . . . . . . . . . . . . . . . . . . . . . . . . . . . . . . . . . . . . . . . . . .
C41: Transportation. . . . . . . . . . . . . . . . . . . . . . . . . . . . . . . . . . . . . . . . . . . . . . . . . . . . . . . . . . . . . . . . . . . . . . . . . . . . . . . . . . . . . . .
C42: Telephone and Office Expense . . . . . . . . . . . . . . . . . . . . . . . . . . . . . . . . . . . . . . . . . . . . . . . . . . . . . . . . . . . . . . . . . . . . . . .
C43: Books and Supplies . . . . . . . . . . . . . . . . . . . . . . . . . . . . . . . . . . . . . . . . . . . . . . . . . . . . . . . . . . . . . . . . . . . . . . . . . . . . . . . | G43: 2459
C44: Other Incidental Expenses . . . . . . . . . . . . . . . . . . . . . . . . . . . . . . . . . . . . . . . . . . . . . . . . . . . . . . . . . . . . . . . . . . . . . . . . . . .
D45: Total Religious Education Expenditures. . . . . . . . . . . . . . . . . . . . . . . . . . . . . . . . . . . . . . . . . . . . . . . . . . . . . . . . . . . . . . . . . . . . . . . . . . . . . . . . . . | H45: $ | I45: =SUM(G38:G44) -> 2632
B47: GENERAL EXPENSES:
C48: Utilities. . . . . . . . . . . . . . . . . . . . . . . . . . . . . . . . . . . . . . . . . . . . . . . . . . . . . . . . . . . . . . . . . . . . . . . . . . . . . . . . . . . . . . . . . . . . | F48: $ | G48: 23183
C49: Taxes-Real Estate. . . . . . . . . . . . . . . . . . . . . . . . . . . . . . . . . . . . . . . . . . . . . . . . . . . . . . . . . . . . . . . . . . . . . . . . . . . . . . . . . . . | G49: 3336
C50: Lay Payroll Taxes and Benefits. . . . . . . . . . . . . . . . . . . . . . . . . . . . . . . . . . . . . . . . . . . . . . . . . . . . . . . . . . . . . . . . . . . . . . . . . . | G50: 39889
C51: Insurance-Property, Liability, Auto and W/C . . . . . . . . . . . . . . . . . . . . . . . . . . . . . . . . . . . . . . . . . . . . . . . . . . . . . . . . . . . . . | G51: 21035
C52: Other General Expenses . . . . . . . . . . . . . . . . . . . . . . . . . . . . . . . . . . . . . . . . . . . . . . . . . . . . . . . . . . . . . . . . . . . . . . . . . . . | G52: 39975
D53: Total General Items. . . . . . . . . . . . . . . . . . . . . . . . . . . . . . . . . . . . . . . . . . . . . . . . . . . . . . . . . . . . . . . . . . . . . . . . . . . . . . . . . . . . . . . . . . . . . . . . . . . | H53: $ | I53: =SUM(G48:G52) -> 127418
B55: DIOCESAN ASSESSMENTS
C56: Cathedraticum Assessment. . . . . . . . . . . . . . . . . . . . . . . . . . . . . . . . . . . . . . . . . . . . . . . . . . . . . . . . . . . . . . . . . . . . . . . . . | F56: $ | G56: 33531
C57: Education Evangelization Assessment . . . . . . . . . . . . . . . . . . . . . . . . . . . . . . . . . . . . . . . . . . . . . . . . . . . . . . . . . . . . . . . . | G57: 33479
D58: Total Diocesan Assessments. . . . . . . . . . . . . . . . . . . . . . . . . . . . . . . . . . . . . . . . . . . . . . . . . . . . . . . . . . . . . . . . . . . . . . . . . . . . . . . . . . . . . . . . . | H58: $ | I58: =SUM(G56:G57) -> 67010
A60: EXTRAORDINARY ACCOUNTS:
C61: Parish Subsidy to Parochial Schools( For parishes with no school). . . . . . . . . . . . . . . . . . . . . . . . . . . . . . . . . . . . . . . . . . | F61: $
C62: Parish Subsidy to Parochial Schools( For parishes with a school). . . . . . . . . . . . . . . . . . . . . . . . . . . . . . . . . . . . . . . . . . . | G62: 73128
B63: OTHER ACCOUNTS: | H63: $ | I63: =SUM(G61:G62) -> 73128
C64: Purchase of Property & Real Estate. . . . . . . . . . . . . . . . . . . . . . . . . . . . . . . . . . . . . . . . . . . . . . . . . . . . . . . . . . . . . . . . . . . . | F64: $
C65: Construction Costs. . . . . . . . . . . . . . . . . . . . . . . . . . . . . . . . . . . . . . . . . . . . . . . . . . . . . . . . . . . . . . . . . . . . . . . . . . . . . . . .
C66: Extraordinary Furnishings . . . . . . . . . . . . . . . . . . . . . . . . . . . . . . . . . . . . . . . . . . . . . . . . . . . . . . . . . . . . . . . . . . . . . . . . . . .
C67: Extraordinary Repairs and Improvements. . . . . . . . . . . . . . . . . . . . . . . . . . . . . . . . . . . . . . . . . . . . . . . . . . . . . . . . . . . . | G67: 101000
C68: Catholic Register Subscriptions . . . . . . . . . . . . . . . . . . . . . . . . . . . . . . . . . . . . . . . . . . . . . . . . . . . . . . . . . . . . . . . . . . . . . . | G68: 992
H69: $ | I69: =SUM(G64:G68) -> 101992
C70: Debt-MAP Principal and Interest . . . . . . . . . . . . . . . . . . . . . . . . . . . . . . . . . . . . . . . . . . . . . . . . . . . . . . . . . . . . . . . . . . . . .
C71: Debt-Other Principal and Interest. . . . . . . . . . . . . . . . . . . . . . . . . . . . . . . . . . . . . . . . . . . . . . . . . . . . . . . . . . . . . . . . . . . . . . . .
C72: Mutual Aid Plan Deposits . . . . . . . . . . . . . . . . . . . . . . . . . . . . . . . . . . . . . . . . . . . . . . . . . . . . . . . . . . . . . . . . . . . . . . . . . . . . . '
C73: Foundation Deposits. . . . . . . . . . . . . . . . . . . . . . . . . . . . . . . . . . . . . . . . . . . . . . . . . . . . . . . . . . . . . . . . . . . . . . . . . . . . . . . . . .
C74: Deposits to Savings and Other Accounts . . . . . . . . . . . . . . . . . . . . . . . . . . . . . . . . . . . . . . . . . . . . . . . . . . . . . . . . . . . . . . . .
H75: $ | I75: =SUM(G70:G74) -> 0
D76: Total Other Accounts. . . . . . . . . . . . . . . . . . . . . . . . . . . . . . . . . . . . . . . . . . . . . . . . . . . . . . . . . . . . . . . . . . . . . . . . . . . . . . . . . . . . . . . . . . . . . . . . . . . . . . . . . . . | H76: $ | I76: =SUM(G64:G74) -> 101992
D77: Total Extraordinary Accounts. . . . . . . . . . . . . . . . . . . . . . . . . . . . . . . . . . . . . . . . . . . . . . . . . . . . . . . . . . . . . . . . . . . . . . . . . . . . . . . . . . . . | H77: $ | I77: =I63+I76 -> 175120
B79: TOTAL PARISH EXPENDITURES . . . . . . . . . . . . . . . . . . . . . . . . . . . . . . . . . . . . . . . . . . . . . . . . . . . . . . . . . . . . . . . . . . . . . . . . . . . . . . . . . . . . . . . . . . . . | H79: $ | I79: =I16+I26+I35+I45+I53+I58+I77 -> 580805

Sheet Signatures
A1: Good results takes good planning. We, the Pastor and Finance Council, submit this annual
A2: budget as a realistic financial plan. Further, we affirm that we will compare the actual results
A3: during the year with this budget, thus allowing for adjustments, as required in the Directive for
A4: Parish Councils dated April 18, 1988.
A9: Pastor or Parish Administrator | J9: Date
A15: Finance Council Chair | J15: Date
A37: Signatures of all Parish Finance Council members are required.
A40: Thank you.

Sheet Notes
A1: Please enter any notes below as additional information to the report.
